[Event "127th NZ Congress Major 2020"]
[Site "Tauranga"]
[Date "2020.01.18"]
[Round "5.1"]
[White "Dai, Oliver"]
[Black "Tang, Hao"]
[Result "1-0"]
[ECO "C05"]
[WhiteElo "1737"]
[BlackElo "1624"]
[Annotator "NA RC"]
[PlyCount "75"]
[EventDate "2020.01.14"]
[EventType "swiss"]
[EventCountry "NZL"]
[SourceTitle "playchess.com"]
[Source "ChessBase"]
[SourceQuality "1"]
[TimeControl "40/5400+30:1800+30"]

1. e4 {[%emt 0:00:00]} e6 {[%emt 1:30:30]} 2. d4 {[%emt 0:00:00]} d5 {[%emt 0:00:30]} 3. Nd2 {[%emt 0:00:00]} Nf6 {[%emt 0:00:00]} 4. e5 {[%emt 0:00:02]} Nfd7 {[%emt 0:00:00]} 5. Bd3 {[%emt 0:00:12]} b6 {[%emt 0:00:00]} 6. Ngf3 {[%emt 0:00:25]} Ba6 {[%emt 0:00:00]} 7. Bxa6 {[%emt 0:01:21]} Nxa6 {[%emt 0:00:00]} 8. O-O {[%emt 0:02:08]} c5 {[%emt 0:00:00]} 9. c3 {[%emt 0:00:21]} Be7 {[%emt 0:00:00]} 10. b3 {[%emt 0:03:20]} cxd4 {[%emt 0:00:00]} 11. Nxd4 {[%emt 0:01:40]} Rc8 {[%emt 0:00:00]} 12. Bb2 {[%emt 0:03:10]} Nac5 {[%emt 0:00:00]} 13. Qe2 {[%emt 0:05:14]} O-O {[%emt 0:00:00]} 14. f4 {[%emt 0:02:35]} g6 {[%emt 0:00:00]} 15. Kh1 {[%emt 0:01:45]} Qc7 {[%emt 0:00:00]} 16. c4 {[%emt 0:06:51]} Qb7 {[%emt 0:00:00]} 17. Rad1 {[%emt 0:03:24]} Rfd8 {[%emt 0:00:00]} 18. cxd5 {[%emt 0:09:48]} Qxd5 {[%emt 0:00:00]} 19. Nc4 {[%emt 0:06:09]} Qe4 {[%emt 0:00:00]} 20. Qd2 {[%emt 0:04:11]} Nb8 {[%emt 0:00:00]} 21. Rfe1 {[%emt 0:01:05]} Qb7 {[%emt 0:00:00]} 22. Qe3 {[%emt 0:03:15]} b5 {[%emt 0:00:00]} 23. Nd6 {[%emt 0:08:32]} Bxd6 {[%emt 0:00:00]} 24. exd6 {[%emt 0:00:08]} Rxd6 {[%emt 0:00:00]} 25. Nxb5 {[%emt 0:06:03]} Rxd1 {[%emt 0:00:00]} 26. Rxd1 {[%emt 0:00:10]} Qe4 {[%emt 0:04:19]} 27. Qxc5 {[%emt 0:01:18]} Qe1+ {[%emt 0:02:05]} 28. Rxe1 {[%emt 0:00:12]} Rxc5 {[%emt 0:00:08]} 29. Rc1 {[%emt 0:00:23]} Rxc1+ {[%emt 0:01:23]} 30. Bxc1 {[%emt 0:00:08]} Nc6 {[%emt 0:00:08]} 31. Be3 {[%emt 0:00:47]} a6 {[%emt 0:01:02]} 32. Nc7 {[%emt 0:00:32]} a5 {[%emt 0:00:07]} 33. Kg1 {[%emt 0:00:15]} Kf8 {[%emt 0:00:15]} 34. Bc5+ {[%emt 0:00:16]} Kg7 {[%emt 0:00:13]} 35. Ne8+ {[%emt 0:00:30]} Kh6 {[%emt 0:00:50]} 36. Bf8+ {[%emt 0:00:34]} Kh5 {[%emt 0:00:24]} 37. Nf6+ {[%emt 0:00:13]} Kh4 {[%emt 0:00:19]} 38. Bc5 {[%emt 0:00:20]} 1-0

[Event "127th NZ Congress Major 2020"]
[Site "Tauranga"]
[Date "2020.01.18"]
[Round "5.2"]
[White "Perrin, Brent"]
[Black "Patterson, Miles"]
[Result "0-1"]
[ECO "C06"]
[WhiteElo "1804"]
[BlackElo "1954"]
[Annotator "NA RC"]
[PlyCount "99"]
[EventDate "2020.01.14"]
[EventType "swiss"]
[EventCountry "NZL"]
[SourceTitle "playchess.com"]
[Source "ChessBase"]
[SourceQuality "1"]
[TimeControl "40/5400+30:1800+30"]

1. e4 {[%emt 0:00:00]} e6 {[%emt 0:00:00]} 2. d4 {[%emt 0:00:00]} d5 {[%emt 0:00:00]} 3. Nd2 {[%emt 0:00:00]} Nf6 {[%emt 0:00:00]} 4. e5 {[%emt 0:00:00]} Nfd7 {[%emt 0:00:00]} 5. Bd3 {[%emt 0:00:00]} c5 {[%emt 0:00:06]} 6. c3 {[%emt 0:00:05]} Nc6 {[%emt 0:00:10]} 7. Ngf3 {[%emt 0:00:16]} g6 {[%emt 0:00:21]} 8. h4 {[%emt 0:03:57]} h6 {[%emt 0:02:25] C06: French Tarrasch: 3...Nf6 4 e5 Nfd7 5 Bd3 main lines} 9. Bc2 {[%emt 0:05:06]} (9. Qe2 Bg7 10. a3 a5 11. Qe3 b6 12. Nf1 Ba6 13. Bxa6 Rxa6 14. N1h2 Ra7 15. Ng4 a4 16. Qf4 {0-1 (53) Guseinov,G (2646)-Socko,B (2593) Riadh 2017}) 9... b6 {[%emt 0:08:44]} 10. O-O {[%emt 0:04:57]} Ba6 {[%emt 0:00:38]} 11. Re1 {[%emt 0:00:10]} cxd4 {[%emt 0:00:52]} 12. cxd4 {[%emt 0:01:28]} Be7 $146 {[%emt 0:05:16]} ({Predecessor:} 12... Nb4 13. Nb1 Qc7 14. Nc3 Nxc2 15. Qxc2 O-O-O 16. Bf4 {1-0 (57) Gopal,G (2528)-Ghane Gardeh,S (2442) Vishakapatnam 2008}) 13. a3 {[%emt 0:08:54]} Na5 {[%emt 0:05:00]} 14. b3 {[%emt 0:04:21]} Rc8 {[%emt 0:00:37]} 15. Bb2 {[%emt 0:02:10]} Nb8 {[%emt 0:15:04]} 16. Rc1 {[%emt 0:06:43]} O-O {[%emt 0:04:18] [#]} ({Black should play} 16... Bxh4 $14 17. Nxh4 Qxh4) 17. h5 $1 {[%emt 0:01:00]} g5 {[%emt 0:00:16]} 18. Nf1 {[%emt 0:03:19]} Kg7 {[%emt 0:02:12]} 19. Ne3 {[%emt 0:01:58]} Rc7 {[%emt 0:07:41]} 20. Ng4 {[%emt 0:09:02]} Nd7 {[%emt 0:03:29]} 21. Qd2 {[%emt 0:08:03]} Rh8 {[%emt 0:06:25]} 22. Qe3 {[%emt 0:05:04]} Qf8 {[%emt 0:10:12]} 23. Bb1 {[%emt 0:09:59]} Rxc1 {[%emt 0:02:20]} 24. Rxc1 {[%emt 0:00:06]} Qd8 {[%emt 0:00:07]} 25. Nd2 {[%emt 0:03:54]} Qb8 {[%emt 0:06:41]} 26. Kh2 {[%emt 0:05:28]} (26. Qf3 $16) 26... f5 {[%emt 0:00:40]} 27. f3 $2 {[%emt 0:02:55]} (27. Bd3 $11 Bc8 28. b4) 27... Rc8 $2 {[%emt 0:07:03]} (27... fxg4 $19 28. Bd3 b5) 28. Nf2 {[%emt 0:00:52]} Rxc1 {[%emt 0:00:05]} 29. Bxc1 {[%emt 0:00:10]} Qc8 {[%emt 0:02:00]} 30. Bb2 {[%emt 0:00:14]} Nf8 {[%emt 0:03:13]} 31. g4 {[%emt 0:00:33]} f4 {[%emt 0:00:09]} 32. Qe1 {[%emt 0:00:12]} Bb5 {[%emt 0:02:18]} 33. Nd3 {[%emt 0:01:11]} Nb7 {[%emt 0:03:03]} 34. Qd1 {[%emt 0:01:07]} a5 {[%emt 0:00:20]} 35. Bc2 {[%emt 0:03:49]} Ba6 {[%emt 0:00:21]} 36. Nb1 {[%emt 0:00:29]} Qc6 {[%emt 0:02:07]} 37. a4 {[%emt 0:03:50]} Nd8 {[%emt 0:00:32]} 38. Ba3 $2 {[%emt 0:01:12]} (38. Kg2 $11) 38... Bxa3 {[%emt 0:00:17]} 39. Nxa3 {[%emt 0:00:08]} Qc3 {[%emt 0:00:19]} 40. Nc1 {[%emt 0:00:00]} Nc6 {[%emt 0:00:00]} 41. Nb5 {[%emt 0:15:26]} Bxb5 {[%emt 0:01:24]} 42. axb5 {[%emt 0:02:35]} Nxd4 {[%emt 0:00:33] Double Attack} 43. Bb1 {[%emt 0:01:30]} Nxf3+ $19 {[%emt 0:01:11]} 44. Kh1 {[%emt 0:01:13]} Qe1+ {[%emt 0:06:54]} 45. Qxe1 {[%emt 0:00:06]} Nxe1 {[%emt 0:00:04]} 46. Ne2 {[%emt 0:00:13]} Nf3 {[%emt 0:00:24]} 47. Bc2 {[%emt 0:00:28]} Nxe5 {[%emt 0:00:29]} 48. b4 {[%emt 0:00:03]} axb4 {[%emt 0:00:27]} 49. Nd4 {[%emt 0:00:30]} Nxg4 {[%emt 0:01:07]} 50. Nc6 {[%emt 0:00:19]} 0-1

[Event "127th NZ Congress Major 2020"]
[Site "Tauranga"]
[Date "2020.01.18"]
[Round "5.3"]
[White "Gold, Hamish"]
[Black "Taylor, Stephan James"]
[Result "1-0"]
[ECO "A80"]
[WhiteElo "1683"]
[BlackElo "1528"]
[Annotator "NA RC"]
[PlyCount "39"]
[EventDate "2020.01.14"]
[EventType "swiss"]
[EventCountry "NZL"]
[SourceTitle "playchess.com"]
[Source "ChessBase"]
[SourceQuality "1"]
[TimeControl "40/5400+30:1800+30"]

1. e3 {[%emt 0:00:00]} e6 {[%emt 0:02:29]} 2. d4 {[%emt 0:00:46]} b6 {[%emt 0:00:23]} 3. f4 {[%emt 0:01:16]} Bb7 {[%emt 0:00:29]} 4. Nf3 {[%emt 0:00:59]} f5 {[%emt 0:03:13]} 5. Bd3 {[%emt 0:02:15]} Nf6 {[%emt 0:00:21]} 6. O-O {[%emt 0:00:49]} Be7 {[%emt 0:00:21]} 7. Nbd2 {[%emt 0:02:00]} O-O {[%emt 0:00:13]} 8. b3 {[%emt 0:00:36]} d6 {[%emt 0:03:44]} 9. Bb2 {[%emt 0:03:49]} Nbd7 {[%emt 0:00:22]} 10. Rc1 {[%emt 0:01:00]} Qe8 {[%emt 0:00:31]} 11. Ng5 {[%emt 0:02:59]} Nd5 {[%emt 0:00:32]} 12. Qe2 {[%emt 0:05:21]} Bxg5 {[%emt 0:02:17]} 13. fxg5 {[%emt 0:01:24]} Nb4 {[%emt 0:00:52]} 14. a3 {[%emt 0:09:46]} Nxd3 {[%emt 0:00:24]} 15. cxd3 {[%emt 0:00:34]} c5 {[%emt 0:00:21]} 16. e4 {[%emt 0:02:56]} f4 {[%emt 0:02:59]} 17. Qg4 {[%emt 0:01:05]} e5 {[%emt 0:00:13]} 18. Nc4 {[%emt 0:01:37]} Qe7 {[%emt 0:00:07]} 19. d5 {[%emt 0:05:05]} Bc8 {[%emt 0:00:28]} 20. Qe6+ {[%emt 0:01:42]} 1-0

[Event "127th NZ Congress Major 2020"]
[Site "Tauranga"]
[Date "2020.01.17"]
[Round "5.4"]
[White "Ashe, Michael"]
[Black "Knightbridge, Wayne"]
[Result "0-1"]
[ECO "D36"]
[WhiteElo "1460"]
[BlackElo "1676"]
[Annotator "NA RC"]
[PlyCount "177"]
[EventDate "2020.01.14"]
[EventType "swiss"]
[EventCountry "NZL"]
[SourceTitle "playchess.com"]
[Source "ChessBase"]
[SourceQuality "1"]
[TimeControl "40/5400+30:1800+30"]

1. d4 {[%emt 0:00:00]} d5 {[%emt 0:00:00]} 2. c4 {[%emt 0:00:00]} e6 {[%emt 0:00:00]} 3. Nc3 {[%emt 0:00:00]} Nf6 {[%emt 0:00:06]} 4. cxd5 {[%emt 0:00:05]} exd5 {[%emt 0:00:22]} 5. Bg5 {[%emt 0:00:18]} Be7 {[%emt 0:06:56]} 6. e3 {[%emt 0:00:15]} O-O {[%emt 0:04:24]} 7. Bd3 {[%emt 0:00:22]} c6 {[%emt 1:21:42]} 8. Qc2 {[%emt 0:00:30]} Nbd7 {[%emt 0:01:11]} 9. Nf3 {[%emt 0:00:20]} Re8 {[%emt 0:03:52]} 10. O-O {[%emt 0:00:19]} h6 {[%emt 0:10:11]} 11. Bh4 {[%emt 0:02:25]} Ne4 {[%emt 1:05:51]} 12. Bxe7 {[%emt 0:03:44]} Qxe7 {[%emt 0:00:04]} 13. Rab1 {[%emt 0:03:28]} Nxc3 {[%emt 0:54:59]} 14. bxc3 {[%emt 0:04:12]} b5 {[%emt 0:02:37]} 15. Nd2 {[%emt 0:04:44]} Qg5 {[%emt 0:15:30]} 16. e4 {[%emt 0:06:24]} Nb6 {[%emt 0:07:25]} 17. exd5 {[%emt 0:06:04]} Nxd5 {[%emt 0:29:42]} 18. Ne4 {[%emt 0:04:12]} Qh5 {[%emt 0:07:39]} 19. Rbe1 {[%emt 0:07:02]} Be6 {[%emt 0:01:33]} 20. Nc5 {[%emt 0:03:36]} Nf4 {[%emt 0:01:21]} 21. Nxe6 {[%emt 0:06:46]} Nxd3 {[%emt 0:01:22]} 22. Qxd3 {[%emt 0:00:29]} Rxe6 {[%emt 0:00:09]} 23. Rxe6 {[%emt 0:00:28]} fxe6 {[%emt 0:00:02]} 24. Qe4 {[%emt 0:01:56]} Qd5 {[%emt 0:00:29]} 25. Qe2 {[%emt 0:01:51]} Rf8 {[%emt 0:00:32]} 26. Re1 {[%emt 0:00:39]} Rf6 {[%emt 0:00:12]} 27. Qc2 {[%emt 0:01:00]} Qc4 {[%emt 0:00:00]} 28. g3 {[%emt 0:02:36]} Rf8 {[%emt 0:00:00]} 29. Rb1 {[%emt 0:40:45]} Rf3 {[%emt 0:01:30]} 30. Rc1 {[%emt 0:04:24]} Qd3 {[%emt 0:00:00]} 31. Qb3 {[%emt 0:03:12]} Qc4 {[%emt 0:00:13]} 32. Qxc4 {[%emt 0:00:21]} bxc4 {[%emt 0:00:08]} 33. Kf1 {[%emt 0:01:14]} Rd3 {[%emt 0:00:57]} 34. Ke2 {[%emt 0:00:12]} Kh7 {[%emt 0:00:51]} 35. f4 {[%emt 0:00:09]} Kg6 {[%emt 0:00:10]} 36. Rc2 {[%emt 0:00:14]} Kf5 {[%emt 0:00:28]} 37. Kf2 {[%emt 0:33:00]} Rd1 {[%emt 0:00:54]} 38. Re2 {[%emt 0:31:52]} Kf6 {[%emt 0:00:39]} 39. Rc2 {[%emt 0:07:17]} Rd3 {[%emt 0:00:43]} 40. Ke2 {[%emt 0:00:00]} Ke7 {[%emt 0:00:00]} 41. a4 {[%emt 0:01:24]} Kd6 {[%emt 0:03:42]} 42. a5 {[%emt 0:00:27]} Kc7 {[%emt 0:03:59]} 43. Rb2 {[%emt 0:04:55]} Rxc3 {[%emt 0:01:51]} 44. Kd1 {[%emt 0:00:15]} Ra3 {[%emt 0:05:18]} 45. Rc2 {[%emt 0:04:58]} Rxa5 {[%emt 0:00:27]} 46. Rxc4 {[%emt 0:00:21]} Ra2 {[%emt 0:00:21]} 47. Rc3 {[%emt 0:06:59]} g6 {[%emt 0:01:24]} 48. h4 {[%emt 0:00:39]} a5 {[%emt 0:01:07]} 49. Kc1 {[%emt 0:01:27]} Kd6 {[%emt 0:00:40]} 50. Kb1 {[%emt 0:03:16]} Ra4 {[%emt 0:00:08]} 51. h5 {[%emt 0:02:08]} gxh5 {[%emt 0:00:23]} 52. Rc5 {[%emt 0:00:48]} Rb4+ {[%emt 0:00:59]} 53. Ka2 {[%emt 0:02:22]} Rb5 {[%emt 0:00:43]} 54. Rc2 {[%emt 0:30:03]} Rb4 {[%emt 0:10:25]} 55. Rc5 {[%emt 0:02:32]} Rb5 {[%emt 0:00:37]} 56. Rc2 {[%emt 0:00:36]} h4 {[%emt 0:01:13]} 57. gxh4 {[%emt 0:05:34]} Rb4 {[%emt 0:01:42]} 58. Rc5 {[%emt 0:17:49]} Rb5 {[%emt 0:00:38]} 59. Rc2 {[%emt 0:02:06]} Rf5 {[%emt 0:00:14]} 60. Rf2 {[%emt 0:01:35]} Kd5 {[%emt 0:00:16]} 61. Kb3 {[%emt 0:00:48]} Kxd4 {[%emt 0:00:14]} 62. Rd2+ {[%emt 0:01:00]} Kc5 {[%emt 0:01:11]} 63. Rc2+ {[%emt 0:00:32]} Kd6 {[%emt 0:00:44]} 64. Rd2+ {[%emt 0:13:08]} Ke7 {[%emt 0:00:06]} 65. Rd4 {[%emt 0:01:15]} Kf6 {[%emt 0:00:15]} 66. Rc4 {[%emt 0:01:03]} c5 {[%emt 0:00:24]} 67. Ka4 {[%emt 0:00:29]} Kg6 {[%emt 0:00:13]} 68. Re4 {[%emt 0:01:25]} Kh5 {[%emt 0:00:16]} 69. Rxe6 {[%emt 0:00:28]} Rxf4+ {[%emt 0:00:04]} 70. Kxa5 {[%emt 0:00:49]} c4 {[%emt 0:00:21]} 71. Kb4 {[%emt 0:01:32]} Rxh4 {[%emt 0:00:07]} 72. Kc3 {[%emt 0:03:23]} Kg4 {[%emt 0:02:20]} 73. Kxc4 {[%emt 0:00:50]} Kf5+ {[%emt 0:00:05]} 74. Kd5 {[%emt 0:00:30]} h5 {[%emt 0:01:27]} 75. Re5+ {[%emt 0:06:09]} Kf4 {[%emt 0:00:07]} 76. Re4+ {[%emt 0:00:49]} Kg3 {[%emt 0:00:05]} 77. Re8 {[%emt 0:02:10]} Rf4 {[%emt 0:01:47]} 78. Ke5 {[%emt 0:02:44]} h4 {[%emt 0:01:10]} 79. Rg8+ {[%emt 0:00:52]} Rg4 {[%emt 0:00:06]} 80. Ra8 {[%emt 0:00:27]} h3 {[%emt 0:04:48]} 81. Ra3+ {[%emt 0:00:39]} Kh4 {[%emt 0:04:58]} 82. Ra2 {[%emt 0:00:27]} Rg2 {[%emt 0:01:19]} 83. Ra4+ {[%emt 0:00:14]} Kg3 {[%emt 0:02:25]} 84. Ra3+ {[%emt 0:00:09]} Kh2 {[%emt 0:00:05]} 85. Ra1 {[%emt 0:00:20]} Rf2 {[%emt 0:03:00]} 86. Ra8 {[%emt 0:00:26]} Kg1 {[%emt 0:00:40]} 87. Ke4 {[%emt 0:01:21]} h2 {[%emt 0:01:04]} 88. Rg8+ {[%emt 0:00:16]} Rg2 {[%emt 0:00:17]} 89. Rh8 {[%emt 0:01:39]} 0-1

[Event "127th NZ Congress Major 2020"]
[Site "Tauranga"]
[Date "2020.01.18"]
[Round "5.5"]
[White "Carpinter, Bernard"]
[Black "Thurner, Anya"]
[Result "1/2-1/2"]
[ECO "E09"]
[WhiteElo "1708"]
[BlackElo "1278"]
[Annotator "NA"]
[PlyCount "35"]
[EventDate "2020.01.14"]
[EventType "swiss"]
[EventCountry "NZL"]
[SourceTitle "playchess.com"]
[Source "ChessBase"]
[SourceQuality "1"]
[TimeControl "40/5400+30:1800+30"]

1. d4 {[%emt 0:00:00]} d5 {[%emt 0:00:00]} 2. c4 {[%emt 0:00:00]} e6 {[%emt 0:00:00]} 3. g3 {[%emt 0:00:00]} Nf6 {[%emt 0:00:12]} 4. Bg2 {[%emt 0:00:08]} Be7 {[%emt 0:00:53]} 5. Nf3 {[%emt 0:00:15]} O-O {[%emt 0:00:44]} 6. O-O {[%emt 0:00:08]} Nbd7 {[%emt 0:00:53]} 7. Qc2 {[%emt 0:00:24]} c6 {[%emt 0:02:02]} 8. Nbd2 {[%emt 0:00:19]} b6 {[%emt 0:02:44]} 9. b3 {[%emt 0:00:19]} Bb7 {[%emt 0:02:11]} 10. Bb2 {[%emt 0:00:09]} Rc8 {[%emt 0:02:03]} 11. e4 {[%emt 0:01:48]} Qc7 {[%emt 0:02:51]} 12. e5 {[%emt 0:00:35]} Ne8 {[%emt 0:01:01]} 13. cxd5 {[%emt 0:04:38]} exd5 {[%emt 0:01:24]} 14. Rac1 {[%emt 0:01:31]} Qb8 {[%emt 0:05:00]} 15. Qd3 {[%emt 0:02:32]} Nc7 {[%emt 0:11:22]} 16. Rfe1 {[%emt 0:00:32]} Ne6 {[%emt 0:01:52]} 17. h4 {[%emt 0:03:04]} Rfd8 {[%emt 0:07:46]} 18. Nh2 {[%emt 0:00:38]} 1/2-1/2

[Event "127th NZ Congress Major 2020"]
[Site "Tauranga"]
[Date "2020.01.19"]
[Round "6.1"]
[White "Dai, Oliver"]
[Black "Gold, Hamish"]
[Result "0-1"]
[ECO "C31"]
[WhiteElo "1737"]
[BlackElo "1683"]
[Annotator "NA RC"]
[PlyCount "42"]
[EventDate "2020.01.14"]
[EventType "swiss"]
[EventCountry "NZL"]
[SourceTitle "playchess.com"]
[Source "ChessBase"]
[SourceQuality "1"]
[TimeControl "40/5400+30:1800+30"]

1. e4 {[%emt 0:00:00]} e5 {[%emt 0:00:10]} 2. f4 {[%emt 0:00:00]} d5 {[%emt 0:01:56]} 3. exd5 {[%emt 0:00:00]} Nf6 {[%emt 0:01:07]} 4. d3 {[%emt 0:01:50]} Nxd5 {[%emt 0:00:43]} 5. Nf3 {[%emt 0:04:15]} exf4 {[%emt 0:02:27]} 6. Be2 {[%emt 0:01:20]} Be7 {[%emt 0:03:23]} 7. O-O {[%emt 0:01:13]} c5 {[%emt 0:03:49]} 8. Nc3 {[%emt 0:04:54]} g5 {[%emt 0:05:17]} 9. Ne4 {[%emt 0:11:25]} Nc6 {[%emt 0:03:09]} 10. c4 {[%emt 0:05:37]} Nc7 {[%emt 0:04:24]} 11. Nfxg5 {[%emt 0:09:25]} Bxg5 {[%emt 0:02:55]} 12. Nxg5 {[%emt 0:01:11]} Qxg5 {[%emt 0:02:39]} 13. Rxf4 {[%emt 0:01:53]} Qg7 {[%emt 0:02:44]} 14. Bh5 {[%emt 0:06:53]} Be6 {[%emt 0:04:10]} 15. Be3 {[%emt 0:06:08]} O-O-O {[%emt 0:02:38]} 16. Bxc5 {[%emt 0:01:36]} Qe5 {[%emt 0:00:37]} 17. b4 {[%emt 0:05:52]} Qxf4 {[%emt 0:00:34]} 18. b5 {[%emt 0:00:59]} Ne5 {[%emt 0:02:20]} 19. g3 {[%emt 0:04:29]} Qg5 {[%emt 0:01:45]} 20. Be2 {[%emt 0:08:10]} Nxd3 {[%emt 0:01:53]} 21. Bxa7 {[%emt 0:01:03]} Nf4 {[%emt 0:00:47]} 0-1

[Event "127th NZ Congress Major 2020"]
[Site "Tauranga"]
[Date "2020.01.19"]
[Round "6.2"]
[White "Patterson, Miles"]
[Black "Tang, Hao"]
[Result "1/2-1/2"]
[ECO "A13"]
[WhiteElo "1954"]
[BlackElo "1624"]
[Annotator "NA RC"]
[PlyCount "58"]
[EventDate "2020.01.14"]
[EventType "swiss"]
[EventCountry "NZL"]
[SourceTitle "playchess.com"]
[Source "ChessBase"]
[SourceQuality "1"]
[TimeControl "40/5400+30:1800+30"]

{[%evp 15,57,-45,32767,32767,32767,-23,-20,-31,-26,-50,32767,32767,-54,-105,-64,-89,-51,32767,32767,32767,-72,-104,-96,-216,-125,-122,-125,-126,-36,-39,-58,32767,-28,-45,-57,-67,-40,-63,0,0,16,0,1,0]} 1. c4 {[%emt 0:00:00]} Nf6 {[%emt 0:00:00]} 2. Nf3 {[%emt 0:00:00]} e6 {[%emt 0:00:00]} 3. g3 {[%emt 0:00:12]} d5 {[%emt 0:00:00]} 4. Bg2 {[%emt 0:00:18]} d4 {[%emt 0:00:45]} 5. d3 {[%emt 0:00:52]} (5. e3 c5 6. O-O Nc6 7. exd4 cxd4 8. d3 Bd6 9. Na3 O-O 10. Nc2 e5 11. b4 a6 12. c5 Bc7 13. a4 e4 14. dxe4 d3 15. Nce1 Nxb4 16. Ba3 {½-½ (35) Anton Guijarro,D (2678)-Wang,H (2725) Changsha 2019}) 5... c5 {[%emt 0:00:52]} 6. b4 {[%emt 0:01:29] A13: English Opening: 1...e6} cxb4 {[%emt 0:00:35]} 7. a3 {[%emt 0:00:06]} Nc6 {[%emt 0:00:23]} 8. O-O {[%emt 0:00:31]} Be7 {[%emt 0:02:38]} 9. axb4 {[%emt 0:02:06]} Nxb4 {[%emt 0:01:14]} 10. Qb3 $146 {[%emt 0:03:20]} ({Predecessor:} 10. Na3 O-O 11. Nb5 Nc6 12. Bf4 Ne8 13. Ne5 Nxe5 14. Bxe5 {1-0 (48) Idani,P (2611)-Zhang,L (2178) Tianjin 2018}) 10... O-O {[%emt 0:01:43]} 11. Bb2 {[%emt 0:04:55]} Nc6 {[%emt 0:02:13]} 12. e3 {[%emt 0:03:05]} dxe3 {[%emt 0:01:41]} 13. fxe3 {[%emt 0:00:06]} Ng4 {[%emt 0:09:04]} 14. d4 {[%emt 0:04:23]} Na5 {[%emt 0:08:21]} 15. Qc3 {[%emt 0:01:10]} b6 {[%emt 0:00:57] Decoy} 16. Nbd2 {[%emt 0:13:52]} Bb7 {[%emt 0:02:13]} 17. Ba3 {[%emt 0:13:51]} Rc8 {[%emt 0:02:13]} 18. h3 {[%emt 0:02:23]} Nf6 {[%emt 0:01:35]} 19. Qb2 {[%emt 0:07:14]} (19. Bxe7 $17 Qxe7 20. Qd3) 19... Ne4 {[%emt 0:07:14]} ({Less strong is} 19... Nxc4 20. Nxc4 Bxf3 21. Bxe7 $17) (19... Bxf3 $19 20. Bxf3 Nxc4 21. Nxc4 Rxc4) 20. Bxe7 {[%emt 0:04:17]} Qxe7 {[%emt 0:00:31]} 21. Nxe4 {[%emt 0:03:14]} Nxc4 {[%emt 0:01:14]} ({Black should try} 21... Bxe4 $17 22. c5 Rb8) 22. Qb1 {[%emt 0:00:47]} Nxe3 {[%emt 0:00:54]} 23. Rf2 {[%emt 0:02:33]} f5 {[%emt 0:17:27]} 24. Ned2 {[%emt 0:01:34]} Nxg2 {[%emt 0:11:48]} 25. Rxg2 {[%emt 0:06:12]} Bd5 {[%emt 0:01:42]} 26. Qb2 {[%emt 0:02:21]} Qb7 {[%emt 0:00:38]} (26... Qc7 $17) 27. Rf2 {[%emt 0:00:36]} f4 {[%emt 0:05:13]} 28. g4 {[%emt 0:00:30]} a5 {[%emt 0:01:33]} 29. Ne5 $11 {[%emt 0:04:53]} Rc7 {[%emt 0:02:47]} 1/2-1/2

[Event "127th NZ Congress Major 2020"]
[Site "Tauranga"]
[Date "2020.01.19"]
[Round "6.4"]
[White "Deng, Abraham"]
[Black "Carpinter, Bernard"]
[Result "1-0"]
[ECO "C54"]
[WhiteElo "1558"]
[BlackElo "1708"]
[Annotator "NA RC"]
[PlyCount "105"]
[EventDate "2020.01.14"]
[EventType "swiss"]
[EventCountry "NZL"]
[SourceTitle "playchess.com"]
[Source "ChessBase"]
[SourceQuality "1"]
[TimeControl "40/5400+30:1800+30"]

1. e4 {[%emt 0:00:00]} e5 {[%emt 0:00:00]} 2. Nf3 {[%emt 0:00:00]} Nc6 {[%emt 0:00:00]} 3. Bc4 {[%emt 0:00:00]} Bc5 {[%emt 0:00:00]} 4. d3 {[%emt 0:00:00]} Nf6 {[%emt 0:00:04]} 5. c3 {[%emt 0:00:00]} O-O {[%emt 0:00:13]} 6. Nbd2 {[%emt 0:00:00]} d5 {[%emt 0:01:45]} 7. exd5 {[%emt 0:00:54]} Nxd5 {[%emt 0:01:54]} 8. O-O {[%emt 0:00:03]} Nb6 {[%emt 0:02:01]} 9. Bb5 {[%emt 0:01:44]} Bd6 {[%emt 0:07:16]} 10. Ne4 {[%emt 0:05:03]} h6 {[%emt 0:03:35]} 11. Re1 {[%emt 0:02:51]} Ne7 {[%emt 0:06:50]} 12. Ng3 {[%emt 0:11:49]} c6 {[%emt 0:03:00]} 13. Ba4 {[%emt 0:00:00]} Nxa4 {[%emt 0:00:12]} 14. Qxa4 {[%emt 0:00:00]} Ng6 {[%emt 0:00:24]} 15. h4 {[%emt 0:07:23]} Bc7 {[%emt 0:08:10]} 16. h5 {[%emt 0:01:06]} Nf4 {[%emt 0:00:52]} 17. Nxe5 {[%emt 0:03:32]} Bxe5 {[%emt 0:00:41]} 18. Bxf4 {[%emt 0:00:31]} Bxf4 {[%emt 0:00:21]} 19. Qxf4 {[%emt 0:00:07]} Qxd3 {[%emt 0:00:35]} 20. Rad1 {[%emt 0:00:35]} Qb5 {[%emt 0:00:52]} 21. Rd2 {[%emt 0:03:58]} Be6 {[%emt 0:02:26]} 22. Re5 {[%emt 0:04:27]} Qc4 {[%emt 0:02:42]} 23. Qxc4 {[%emt 0:01:02]} Bxc4 {[%emt 0:00:09]} 24. Rd7 {[%emt 0:02:37]} b6 {[%emt 0:03:47]} 25. Ree7 {[%emt 0:01:55]} Bxa2 {[%emt 0:00:20]} 26. Rxa7 {[%emt 0:00:09]} Rxa7 {[%emt 0:02:16]} 27. Rxa7 {[%emt 0:00:06]} Bd5 {[%emt 0:01:00]} 28. Rb7 {[%emt 0:01:14]} b5 {[%emt 0:00:21]} 29. Nf5 {[%emt 0:00:44]} Rd8 {[%emt 0:08:26]} 30. Ne7+ {[%emt 0:01:59]} Kf8 {[%emt 0:01:48]} 31. Rc7 {[%emt 0:00:22]} Rd6 {[%emt 0:02:11]} 32. Nxd5 {[%emt 0:00:12]} Rxd5 {[%emt 0:00:11]} 33. Rxc6 {[%emt 0:52:07]} Rxh5 {[%emt 0:00:22]} 34. Kf1 {[%emt 0:00:00]} Re5 {[%emt 0:06:07]} 35. c4 {[%emt 0:00:00]} bxc4 {[%emt 0:01:00]} 36. Rxc4 {[%emt 0:00:00]} Rb5 {[%emt 0:00:17]} 37. b4 {[%emt 0:00:00]} Ke7 {[%emt 0:09:09]} 38. Ke2 {[%emt 0:00:00]} Kd6 {[%emt 0:01:20]} 39. Kd3 {[%emt 0:00:00]} h5 {[%emt 0:00:00]} 40. Rd4+ {[%emt 0:00:00]} Kc6 {[%emt 0:00:00]} 41. Rf4 {[%emt 0:00:00]} f5 {[%emt 0:11:55]} 42. Rh4 {[%emt 0:00:00]} g6 {[%emt 0:04:16]} 43. Rc4+ {[%emt 0:00:00]} Kd5 {[%emt 0:07:56]} 44. f4 {[%emt 0:00:00]} Rb8 {[%emt 0:07:51]} 45. Rc5+ {[%emt 0:00:00]} Kd6 {[%emt 0:00:15]} 46. Kc4 {[%emt 0:00:00]} Re8 {[%emt 0:00:15]} 47. Rd5+ {[%emt 0:00:00]} Kc6 {[%emt 0:00:29]} 48. Re5 {[%emt 0:00:00]} Rxe5 {[%emt 0:06:42]} 49. fxe5 {[%emt 0:00:00]} f4 {[%emt 0:00:10]} 50. b5+ {[%emt 0:00:00]} Kd7 {[%emt 0:01:58]} 51. b6 {[%emt 0:00:00]} f3 {[%emt 0:00:12]} 52. gxf3 {[%emt 0:00:00]} h4 {[%emt 0:00:07]} 53. e6+ {[%emt 0:00:00]} 1-0